bitfinex/quotes_BTCUSD_20250802
["timestamp","ask_amount","ask_price","bid_price","bid_amount"]
[1754098437178,0.01089972,113690.0,113680.0,0.41380634]
[1754098438597,0.01089972,113690.0,113680.0,0.04163]
[1754098441936,0.01089972,113690.0,113680.0,0.11429706]
[1754098442171,0.01089972,113690.0,113680.0,0.41380634]
[1754098442749,0.01089972,113690.0,113680.0,0.21756244]
[1754098442959,0.01089972,113690.0,113680.0,0.58973878]
[1754098442960,0.00989972,113690.0,113680.0,0.58973878]
[1754098443160,0.0446343,113710.0,113680.0,0.58973878]
[1754098443361,0.0446343,113710.0,113690.0,0.17535]
[1754098443560,0.07169106,113710.0,113700.0,0.03545]
[1754098443910,0.07370106,113710.0,113700.0,0.03545]
[1754098444313,0.02906676,113710.0,113700.0,0.04043]
[1754098444460,0.02705676,113710.0,113700.0,0.04043]
[1754098444658,0.00047884,113710.0,113700.0,0.04143]
[1754098445091,0.17837486,113710.0,113700.0,0.04143]
[1754098445295,0.27064453,113710.0,113700.0,0.04143]
[1754098446105,0.21421486,113710.0,113700.0,0.04143]
[1754098447605,0.21421486,113710.0,113700.0,0.03841]
[1754098448015,0.24045785,113710.0,113700.0,0.03841]
[1754098448658,0.25881346,113710.0,113700.0,0.03841]
[1754098449233,0.25881346,113710.0,113700.0,0.04041]
[1754098451995,0.31628265,113710.0,113700.0,0.04041]
[1754098452559,0.25881346,113710.0,113700.0,0.04041]
[1754098453298,0.04708744,113710.0,113700.0,0.04343]
[1754098454954,0.04507744,113710.0,113700.0,0.41560634]
[1754098456277,0.01883445,113710.0,113700.0,0.41560634]
[1754098457642,0.01883445,113710.0,113700.0,0.04343]
[1754098457863,0.01883445,113710.0,113700.0,0.4178051]
[1754098458046,0.01883445,113710.0,113700.0,0.41560634]
[1754098459527,0.01883445,113710.0,113700.0,0.48844629]
[1754098461823,0.01883445,113710.0,113700.0,0.41560634]
[1754098462410,0.01883445,113710.0,113700.0,0.59150783]
[1754098465054,0.01883445,113710.0,113700.0,0.67570772]
[1754098468282,0.07073513,113730.0,113700.0,0.67570772]
[1754098468523,0.07073513,113730.0,113710.0,0.17778]
[1754098468704,0.24057942,113730.0,113710.0,0.63147073]
[1754098469293,0.25855291,113730.0,113710.0,0.63147073]
[1754098469445,0.01897349,113730.0,113710.0,0.63147073]
[1754098469647,0.19482937,113730.0,113720.0,0.03783]
[1754098469851,0.19578937,113730.0,113720.0,0.03783]
[1754098470025,0.19678937,113730.0,113720.0,0.03783]
[1754098470835,0.19578937,113730.0,113720.0,0.03783]
[1754098471916,0.01993349,113730.0,113720.0,0.03783]
[1754098472135,0.01993349,113730.0,113720.0,0.04098]
[1754098472412,0.02093349,113730.0,113720.0,0.04098]
[1754098472872,0.04692444,113730.0,113720.0,0.04098]
[1754098473513,0.04692444,113730.0,113720.0,0.04315]
[1754098477208,0.04496444,113730.0,113720.0,0.04315]
[1754098478516,0.01897349,113730.0,113720.0,0.04315]
[1754098480498,0.01897349,113730.0,113720.0,0.11595117]
[1754098480716,0.01897349,113730.0,113720.0,0.04315]
[1754098481723,0.01797349,113730.0,113720.0,0.04315]
[1754098481928,0.01797349,113730.0,113720.0,0.41732634]
[1754098482127,0.01797349,113730.0,113720.0,0.59319689]
[1754098482378,0.01797349,113730.0,113720.0,0.67739678]
[1754098482585,0.01797349,113730.0,113720.0,0.67839678]
[1754098483323,0.01797349,113730.0,113720.0,0.67539678]
[1754098483773,0.2023393,113760.0,113740.0,0.37217634]
[1754098483934,1.14196228,113770.0,113750.0,0.00217]
[1754098483935,0.35520594,113770.0,113750.0,0.00217]
[1754098484140,0.46582583,113770.0,113750.0,0.04315]
[1754098484905,0.46582583,113770.0,113750.0,0.04327622]
[1754098485103,0.49246802,113770.0,113750.0,0.04327622]
[1754098485715,0.49246802,113770.0,113750.0,0.1009838]
[1754098485922,0.49011802,113770.0,113750.0,0.1009838]
[1754098486130,0.001,113760.0,113750.0,0.1009838]
[1754098486576,0.21131813,113770.0,113750.0,0.1009838]
[1754098486802,0.02664219,113770.0,113760.0,0.03783]
[1754098487043,0.00196,113770.0,113760.0,0.03783]
[1754098487268,0.19883209,113770.0,113760.0,0.17411]
[1754098487499,0.18075326,113770.0,113760.0,0.17411]
[1754098488208,0.21257326,113770.0,113760.0,0.17411]
[1754098488668,0.20957326,113770.0,113760.0,0.13628]
[1754098489328,0.21057326,113770.0,113760.0,0.13628]
[1754098489791,0.23736051,113770.0,113760.0,0.13628]
[1754098490016,0.23736051,113770.0,113760.0,0.17411]
[1754098490251,0.20554051,113770.0,113760.0,0.17411]
[1754098490693,0.02974725,113770.0,113760.0,0.17411]
[1754098490926,0.20554051,113770.0,113760.0,0.17726]
[1754098491409,0.20554051,113770.0,113760.0,0.19499862]
[1754098491598,0.22391213,113770.0,113760.0,0.19499862]
[1754098491815,0.04811887,113770.0,113760.0,0.17726]
[1754098492546,0.04811887,113770.0,113760.0,0.17943]
[1754098494162,0.62790847,113770.0,113760.0,0.13608]
[1754098494773,0.25573213,113770.0,113760.0,0.13608]
[1754098494979,0.62790847,113770.0,113760.0,0.13608]
[1754098495233,0.62790847,113770.0,113760.0,0.13708]
[1754098495645,0.62790847,113770.0,113760.0,0.002]
[1754098497087,0.25573213,113770.0,113760.0,0.002]
[1754098497293,0.62790847,113770.0,113760.0,0.002]
[1754098499854,0.25573213,113770.0,113760.0,0.03913]
[1754098500058,0.62790847,113770.0,113760.0,0.03913]
[1754098500263,0.59608847,113770.0,113760.0,0.03913]
[1754098501199,0.22391213,113770.0,113760.0,0.03913]
[1754098501933,0.02133162,113770.0,113760.0,0.04123]
[1754098502135,0.01937162,113770.0,113760.0,0.59459266]
[1754098502356,0.01937162,113770.0,113760.0,0.59239506]
[1754098503046,0.01937162,113770.0,113760.0,0.12860989]
[1754098503398,0.01937162,113770.0,113760.0,0.26704749]
[1754098503631,0.01937162,113770.0,113760.0,0.26484989]
[1754098512519,0.62680637,113770.0,113760.0,0.002]
[1754098512733,1.05100626,113770.0,113760.0,0.002]
[1754098513353,1.05452926,113770.0,113760.0,0.002]
[1754098513770,1.05452926,113770.0,113760.0,0.001]
[1754098515042,0.17580872,113760.0,113750.0,0.00012622]
[1754098515159,0.72899321,113760.0,113750.0,0.00012622]
[1754098515366,0.35171872,113760.0,113750.0,0.00012622]
[1754098515794,0.72389506,113760.0,113750.0,0.00012622]
[1754098516646,0.72489506,113760.0,113750.0,0.00012622]
[1754098517513,0.72489506,113760.0,113750.0,0.00112622]
[1754098522111,0.72266506,113760.0,113750.0,0.00112622]
[1754098523495,0.74908506,113760.0,113750.0,0.00112622]
[1754098524114,0.83328495,113760.0,113750.0,0.00112622]
[1754098527621,0.74908506,113760.0,113750.0,0.00112622]
[1754098528443,0.37690872,113760.0,113750.0,0.00112622]
[1754098528643,0.74908506,113760.0,113750.0,0.00112622]
[1754098531161,1.56514031,113760.0,113750.0,0.00112622]
[1754098531367,1.61799031,113760.0,113750.0,1e-08]
[1754098531570,1.7021902,113760.0,113750.0,1e-08]
[1754098532523,1.7011902,113760.0,113750.0,1e-08]
[1754098532714,1.7061902,113760.0,113750.0,1e-08]
[1754098533532,0.17585509,113730.0,113720.0,0.03992]
[1754098533740,0.68383143,113730.0,113720.0,0.04203]
[1754098534153,0.31165509,113730.0,113720.0,0.04203]
[1754098534355,0.68383143,113730.0,113720.0,0.04203]
[1754098538134,0.71008424,113730.0,113720.0,0.04203]
[1754098545232,0.79626413,113730.0,113720.0,0.03685]
[1754098545431,0.18467621,113720.0,113710.0,0.03992]
[1754098545637,0.69237255,113720.0,113710.0,0.04203]
[1754098545836,0.55685255,113720.0,113710.0,0.04203]
[1754098546636,0.55685255,113720.0,113710.0,0.04315624]
[1754098548010,0.55685255,113720.0,113710.0,0.04415624]
[1754098549071,0.55883255,113720.0,113710.0,0.04415624]
[1754098549663,0.18665621,113720.0,113710.0,0.04415624]
[1754098549896,0.32015621,113720.0,113710.0,0.04415624]
[1754098550045,0.18467621,113720.0,113710.0,0.04415624]
[1754098550789,0.00879352,113720.0,113710.0,0.04415624]
[1754098552000,0.18466407,113720.0,113710.0,0.04415624]
[1754098554286,0.55684041,113720.0,113710.0,0.04415624]
[1754098555537,0.18466407,113720.0,113710.0,0.04415624]
[1754098555741,0.00879352,113720.0,113710.0,0.04415624]
[1754098559391,0.18466407,113720.0,113710.0,0.04415624]
[1754098562360,0.3705779,113730.0,113710.0,0.04415624]
[1754098562565,0.2021079,113730.0,113710.0,0.4207482]
[1754098562772,0.2021079,113730.0,113710.0,0.3808282]
[1754098562979,0.2021079,113730.0,113720.0,0.04009]
[1754098563185,0.2021079,113730.0,113720.0,0.04213]
[1754098568667,0.66046413,113730.0,113720.0,0.03686]
[1754098568873,0.70657491,113730.0,113720.0,0.03686]
[1754098569074,0.73893491,113730.0,113720.0,0.03686]
[1754098569890,0.17587055,113720.0,113710.0,0.04021624]
[1754098570230,0.59415767,113720.0,113710.0,0.04225624]
[1754098570798,0.17587055,113720.0,113710.0,0.04225624]
[1754098571505,0.17587055,113720.0,113710.0,0.04325624]
[1754098572331,0.17587055,113720.0,113710.0,0.04625624]
[1754098576538,0.17587055,113720.0,113710.0,0.04098624]
[1754098576539,0.22432292,113720.0,113710.0,0.04098624]
[1754098577468,0.17785055,113720.0,113710.0,0.04098624]
[1754098592882,0.17785055,113720.0,113710.0,0.45925885]
[1754098593022,0.17785055,113720.0,113710.0,0.46224885]
[1754098595491,0.17785055,113720.0,113710.0,0.46421885]
[1754098595907,0.64250792,113730.0,113710.0,0.46421885]
[1754098596141,0.17587055,113720.0,113710.0,0.46421885]
[1754098596870,0.17587055,113720.0,113710.0,0.46321885]
[1754098597774,0.17587055,113720.0,113710.0,0.46021885]
[1754098598184,0.17587055,113720.0,113710.0,0.46121885]
[1754098598592,0.17587055,113720.0,113710.0,0.46021885]
[1754098599243,0.17587055,113720.0,113710.0,0.46321885]
[1754098599457,0.17587055,113720.0,113710.0,0.46421885]
[1754098605417,0.17521255,113720.0,113710.0,0.46421885]
[1754098613760,0.17521255,113720.0,113710.0,0.04594624]
[1754098613994,0.17521255,113720.0,113710.0,0.46421885]
[1754098616729,0.17521255,113720.0,113710.0,0.04594624]
[1754098617013,0.17521255,113720.0,113710.0,0.46421885]
[1754098620497,0.02625281,113730.0,113710.0,0.54841874]
[1754098620715,0.36625281,113730.0,113720.0,0.55379261]
[1754098620962,0.34,113730.0,113720.0,0.59549261]
[1754098621833,0.34,113730.0,113720.0,0.59849261]
[1754098623092,0.34,113730.0,113720.0,0.59949261]
[1754098624701,0.36667958,113730.0,113720.0,0.59949261]
[1754098625666,1.03009172,113730.0,113720.0,0.0457]
[1754098625857,1.06205172,113730.0,113720.0,0.13952]
[1754098626742,1.06205172,113730.0,113720.0,0.004]
[1754098627877,0.99336728,113730.0,113720.0,0.004]
[1754098628323,0.57509467,113730.0,113720.0,0.004]
[1754098628817,0.54313467,113730.0,113720.0,0.04361]
[1754098629561,0.54313467,113730.0,113720.0,0.0457]
[1754098631428,0.54253467,113730.0,113720.0,0.0457]
[1754098631667,0.54253467,113730.0,113720.0,0.46397261]
[1754098632858,0.54253467,113730.0,113720.0,0.0457]
[1754098633004,0.54253467,113730.0,113720.0,0.46397261]
[1754098633181,0.54313467,113730.0,113720.0,0.46397261]
[1754098634038,0.54313467,113730.0,113720.0,0.0457]
[1754098637652,0.54253467,113730.0,113720.0,0.46397261]
[1754098642568,0.20253467,113730.0,113720.0,0.46397261]
[1754098642991,0.02667958,113730.0,113720.0,0.46397261]
[1754098643261,0.32016485,113740.0,113720.0,0.46397261]
[1754098643535,0.32016485,113740.0,113730.0,0.41827261]
[1754098643790,0.32016485,113740.0,113730.0,0.0417]
[1754098646191,0.32016485,113740.0,113730.0,0.45997261]
[1754098647996,0.18464485,113740.0,113730.0,0.45997261]
[1754098648232,0.32016485,113740.0,113730.0,0.45997261]
[1754098649200,0.32016485,113740.0,113730.0,0.59549261]
[1754098649424,0.34658885,113740.0,113730.0,0.59549261]
[1754098649621,0.21106885,113740.0,113730.0,0.59549261]
[1754098649825,0.161944,113740.0,113730.0,0.59549261]
[1754098650285,0.026424,113740.0,113730.0,0.59549261]
[1754098650503,0.3201609,113750.0,113730.0,0.59549261]
[1754098650758,0.3465819,113750.0,113740.0,0.45680261]
[1754098650965,0.3465819,113750.0,113740.0,0.04063]
[1754098651617,0.3475819,113750.0,113740.0,0.04063]
[1754098652041,0.3485819,113750.0,113740.0,0.04063]
[1754098652910,0.3475819,113750.0,113740.0,0.04063]
[1754098653143,0.3485819,113750.0,113740.0,0.04063]
[1754098655799,0.13748,113750.0,113740.0,0.45890261]
[1754098656004,0.002,113750.0,113740.0,0.5431025]
[1754098656437,0.002,113750.0,113740.0,0.45890261]
[1754098657286,0.001,113750.0,113740.0,0.45890261]
[1754098657645,0.33770872,113760.0,113740.0,0.45990261]
[1754098657991,0.33770872,113760.0,113750.0,0.45680261]
[1754098658220,0.33770872,113760.0,113750.0,0.45890261]
[1754098658619,0.33770872,113760.0,113750.0,0.17611]
[1754098658854,0.20222872,113760.0,113750.0,0.17611]
[1754098659028,0.33770872,113760.0,113750.0,0.17611]
[1754098659238,0.33770872,113760.0,113750.0,0.17623624]
[1754098660006,0.33770872,113760.0,113750.0,0.04075624]
[1754098660393,0.31128872,113760.0,113750.0,0.45902885]
[1754098660603,0.17580872,113760.0,113750.0,0.45902885]
[1754098660805,0.36485254,113770.0,113750.0,0.45902885]
[1754098661028,0.36485254,113770.0,113760.0,0.41827261]
[1754098661253,0.36485254,113770.0,113760.0,0.04063]
[1754098661453,0.36545254,113770.0,113760.0,0.04063]
[1754098662283,0.36745254,113770.0,113760.0,0.04063]
[1754098662897,0.36645254,113770.0,113760.0,0.04063]
[1754098663068,0.36745254,113770.0,113760.0,0.04063]
[1754098664298,0.34043454,113770.0,113760.0,0.04063]
[1754098664772,0.02037162,113770.0,113760.0,0.17611]
[1754098664948,0.02037162,113770.0,113760.0,0.59438261]
[1754098665347,0.02037162,113770.0,113760.0,0.17611]
[1754098665549,0.02037162,113770.0,113760.0,0.59438261]
[1754098666122,0.02037162,113770.0,113760.0,0.17611]
[1754098666309,0.02037162,113770.0,113760.0,0.59438261]
[1754098666804,0.02037162,113770.0,113760.0,0.17611]
[1754098667312,0.02037162,113770.0,113760.0,0.59438261]
[1754098668464,0.02037162,113770.0,113760.0,0.6538335]
[1754098669281,0.01937162,113770.0,113760.0,0.6538335]
[1754098669645,0.01937162,113770.0,113760.0,0.6548335]
[1754098670124,0.01837162,113770.0,113760.0,0.6548335]
[1754098670339,0.7387703,113780.0,113760.0,0.6558335]
[1754098670566,0.0004,113780.0,113770.0,0.45680261]
[1754098670770,0.0004,113780.0,113770.0,0.45890261]
[1754098670965,0.0004,113780.0,113770.0,0.41198927]
[1754098671532,0.0004,113780.0,113770.0,0.04063]
[1754098672007,0.03052187,113780.0,113770.0,0.04063]
[1754098672213,0.03052187,113780.0,113770.0,0.49618916]
[1754098672330,0.0004,113780.0,113770.0,0.49618916]
[1754098672532,0.0004,113780.0,113770.0,0.67198242]
[1754098672777,0.0004,113780.0,113770.0,0.69839142]
[1754098673233,0.0004,113780.0,113770.0,0.69939142]
[1754098673483,0.0004,113780.0,113770.0,0.52359816]
[1754098674133,0.0004,113780.0,113770.0,0.52459816]
[1754098674427,0.0004,113780.0,113770.0,0.52359816]
[1754098674813,0.0004,113780.0,113770.0,0.52559816]
[1754098675238,0.0004,113780.0,113770.0,0.52759816]
[1754098675688,0.03039919,113780.0,113770.0,0.52759816]
[1754098677061,0.36410565,113800.0,113770.0,0.52759816]
[1754098677263,0.17576332,113790.0,113780.0,0.17341]
[1754098677478,0.17576332,113790.0,113780.0,0.1755]
[1754098678451,0.17576332,113790.0,113780.0,0.1765]
[1754098679069,0.17576332,113790.0,113780.0,0.1775]
[1754098679452,0.2060814,113790.0,113780.0,0.1775]
[1754098683854,0.60776067,113790.0,113780.0,0.002]
[1754098684063,0.69196056,113790.0,113780.0,0.002]
[1754098684275,1.05837456,113790.0,113780.0,0.002]
[1754098684691,0.17580872,113760.0,113750.0,0.16493824]
[1754098684963,0.17640872,113760.0,113750.0,0.17353624]
[1754098686258,0.17640872,113760.0,113750.0,0.17653624]
[1754098687027,0.17640872,113760.0,113750.0,0.17853624]
[1754098690464,0.17640872,113760.0,113750.0,0.17653624]
[1754098690868,0.17640872,113760.0,113750.0,0.17453624]
[1754098691011,0.17640872,113760.0,113750.0,0.17553624]
[1754098691465,0.17640872,113760.0,113750.0,0.17762624]
[1754098691885,0.17580872,113760.0,113750.0,0.17762624]
[1754098706779,0.59383251,113760.0,113750.0,0.17762624]
[1754098708139,0.36701249,113770.0,113750.0,0.17762624]
[1754098708489,0.59383251,113760.0,113750.0,0.17762624]
[1754098709684,0.59383251,113760.0,113750.0,0.17662624]
[1754098710105,0.59383251,113760.0,113750.0,0.17562624]
[1754098711253,0.59383251,113760.0,113750.0,0.17662624]
[1754098711393,0.59383251,113760.0,113750.0,0.17762624]
[1754098715401,0.17580872,113760.0,113750.0,0.17762624]
[1754098722801,0.59383251,113760.0,113750.0,0.17762624]
[1754098724344,0.17580872,113760.0,113750.0,0.17762624]
[1754098732956,0.17580872,113760.0,113750.0,0.17750624]
[1754098733863,0.59383251,113760.0,113750.0,0.17750624]
[1754098735101,0.17580872,113760.0,113750.0,0.17750624]
[1754098741125,0.17580872,113760.0,113750.0,0.65508303]
[1754098745259,0.17580872,113760.0,113750.0,0.23705924]
[1754098745645,0.17580872,113760.0,113750.0,0.59553003]
[1754098747565,0.17580872,113760.0,113750.0,0.17750624]
[1754098747775,0.17580872,113760.0,113750.0,0.59553003]
[1754098752573,0.17580872,113760.0,113750.0,0.17750624]
[1754098752777,0.17580872,113760.0,113750.0,0.59553003]
[1754098752979,0.17580872,113760.0,113750.0,0.17750624]
[1754098758637,0.17580872,113760.0,113750.0,0.23705924]
[1754098761662,0.17580872,113760.0,113750.0,0.17750624]
[1754098773908,0.59383028,113770.0,113750.0,0.17750624]
[1754098774109,0.62461028,113770.0,113750.0,0.17750624]
[1754098774787,0.62461028,113770.0,113750.0,0.17550624]
[1754098775356,0.59383028,113770.0,113760.0,0.03925]
[1754098775587,0.59443028,113770.0,113760.0,0.03925]
[1754098775910,0.62521028,113770.0,113760.0,0.03925]
[1754098776113,0.62521028,113770.0,113750.0,0.13544624]
[1754098776327,0.62521028,113770.0,113750.0,0.59272003]
[1754098778350,0.20718649,113770.0,113750.0,0.59272003]
[1754098778556,0.62521028,113770.0,113750.0,0.59272003]
[1754098779727,0.59383028,113770.0,113760.0,0.04122]
[1754098779981,0.17580872,113760.0,113750.0,0.13544624]
[1754098780225,0.54690872,113760.0,113750.0,0.00012624]
[1754098780460,1.3829563,113760.0,113750.0,0.00012624]
[1754098781404,1.3829563,113760.0,113750.0,0.00112624]
[1754098781839,1.3829563,113760.0,113750.0,0.00012624]
[1754098782048,1.5215563,113760.0,113750.0,0.00012624]
[1754098782730,1.5215563,113760.0,113720.0,0.025]
[1754098782731,1.01190267,113730.0,113720.0,0.025]
[1754098782912,1.53957169,113730.0,113720.0,0.02512625]
[1754098783661,1.56606815,113730.0,113720.0,0.02512625]
[1754098784496,1.56906815,113730.0,113720.0,0.02512625]
[1754098784938,0.73302057,113730.0,113720.0,0.02512625]
[1754098785142,1.47702781,113730.0,113720.0,0.02512625]
[1754098786650,1.10502419,113730.0,113720.0,0.02512625]
[1754098786862,0.73302057,113730.0,113720.0,0.02512625]
[1754098787050,1.10502419,113730.0,113720.0,0.02512625]
[1754098787358,1.27342397,113730.0,113720.0,0.02512625]
[1754098787575,1.27542397,113730.0,113720.0,0.02512625]
[1754098787786,1.13630397,113730.0,113720.0,0.02512625]
[1754098788005,1.27534397,113730.0,113720.0,0.02512625]
[1754098788684,1.16064408,113730.0,113720.0,0.02512625]
[1754098788892,1.18707508,113730.0,113720.0,0.02512625]
[1754098789114,1.21720508,113730.0,113720.0,0.02512625]
[1754098792786,0.17591978,113690.0,113670.0,0.13904]
[1754098793003,0.54793795,113680.0,113670.0,0.00014372]
[1754098793210,0.54793795,113680.0,113670.0,0.00211372]
[1754098793635,0.17593433,113680.0,113670.0,0.00211372]
[1754098793861,0.21211166,113680.0,113670.0,0.04136372]
[1754098794277,0.23589451,113680.0,113670.0,0.04736372]
[1754098794702,0.74721813,113680.0,113670.0,0.04736372]
[1754098794909,0.74721813,113680.0,113670.0,0.04436372]
[1754098795438,0.74721813,113680.0,113670.0,0.04836372]
[1754098795637,0.74721813,113680.0,113670.0,0.04136372]
[1754098795845,0.74721813,113680.0,113670.0,0.04336372]
[1754098796003,0.74721813,113680.0,113670.0,0.04636372]
[1754098796440,0.77205642,113680.0,113670.0,0.04436372]
[1754098796649,0.77205642,113680.0,113670.0,0.04536372]
[1754098797226,0.77205642,113680.0,113670.0,0.04236372]
[1754098797429,0.77205642,113680.0,113670.0,0.04336372]
[1754098798589,0.72315528,113680.0,113670.0,0.04336372]
[1754098800032,0.35115166,113680.0,113670.0,0.04336372]
[1754098801001,0.37759066,113680.0,113670.0,0.04336372]
[1754098803825,0.74959428,113680.0,113670.0,0.04336372]
[1754098806984,0.37759066,113680.0,113670.0,0.04336372]
[1754098807159,0.46179055,113680.0,113670.0,0.04336372]
[1754098809241,0.77535155,113680.0,113670.0,0.04336372]
[1754098809440,0.66927593,113680.0,113670.0,0.04336372]
[1754098809927,1.06798953,113680.0,113670.0,0.04336372]
[1754098810128,0.66927593,113680.0,113670.0,0.04336372]
[1754098815108,0.66987593,113680.0,113670.0,0.04336372]
[1754098816644,0.72277593,113680.0,113670.0,0.04336372]
[1754098816852,0.66987593,113680.0,113670.0,0.04336372]
[1754098817074,0.66987593,113680.0,113670.0,0.58071732]
[1754098817075,0.0143016,113680.0,113670.0,0.58071732]
[1754098817303,0.026438,113690.0,113670.0,0.83255308]
[1754098817522,0.366438,113690.0,113680.0,0.4361336]
[1754098817755,0.34,113690.0,113680.0,0.03957]
[1754098818002,0.34968717,113710.0,113680.0,0.6142138]
[1754098818210,0.40745306,113710.0,113690.0,0.4361336]
[1754098818428,0.40745306,113710.0,113700.0,0.03957]
[1754098818665,0.74745306,113710.0,113700.0,0.03957]
[1754098820578,0.53937855,113710.0,113700.0,0.03957]
[1754098820798,0.71529396,113710.0,113700.0,0.03957]
[1754098821004,0.74531117,113710.0,113700.0,0.03957]
[1754098822024,0.75410547,113710.0,113700.0,0.03957]
[1754098824097,0.66990558,113710.0,113700.0,0.03957]
[1754098829533,0.71720728,113710.0,113700.0,0.03957]
[1754098829954,0.66990558,113710.0,113700.0,0.03957]
[1754098833845,0.49399017,113710.0,113700.0,0.03957]
[1754098834240,0.48519587,113710.0,113700.0,0.03957]
[1754098839698,0.16797721,113710.0,113700.0,0.03957]
[1754098843347,0.50797721,113710.0,113700.0,0.03957]
[1754098844666,0.50773721,113710.0,113700.0,0.4382836]
[1754098844819,0.03001721,113710.0,113700.0,0.4382836]
[1754098845034,0.03001721,113710.0,113700.0,0.75194509]
[1754098845253,0.02649646,113730.0,113710.0,0.17588553]
[1754098845493,0.02649646,113730.0,113720.0,0.4036536]
[1754098845695,0.50423,113740.0,113720.0,0.5778036]
[1754098845926,0.03031808,113730.0,113720.0,0.13975]
[1754098846146,0.4778,113740.0,113720.0,0.13975]
[1754098846362,0.05792488,113730.0,113720.0,0.13975]
[1754098846534,0.4778,113740.0,113730.0,0.03934]
[1754098846755,0.1378,113740.0,113730.0,0.04129]
[1754098847091,0.34,113740.0,113730.0,0.04129]
[1754098847279,0.47776,113740.0,113730.0,0.04129]
[1754098847866,0.47976,113740.0,113730.0,0.04129]
[1754098848532,0.65559963,113740.0,113730.0,0.04129]
[1754098848710,0.51783963,113740.0,113730.0,0.04129]
[1754098848896,0.343,113740.0,113730.0,0.04129]
[1754098849271,0.48068,113740.0,113730.0,0.04129]
[1754098849684,0.51181559,113740.0,113730.0,0.04129]
[1754098849912,0.68765522,113740.0,113730.0,0.04129]
[1754098850638,0.34765522,113740.0,113730.0,0.04129]
[1754098850849,0.23676952,113740.0,113730.0,0.09908469]
[1754098851250,0.23676952,113740.0,113730.0,0.04129]
[1754098854760,0.06092989,113740.0,113730.0,0.04129]
[1754098855602,0.05992989,113740.0,113730.0,0.04129]
[1754098856415,0.05792989,113740.0,113730.0,0.04129]
[1754098856650,0.35430654,113750.0,113730.0,0.04129]
[1754098856829,0.43850643,113750.0,113730.0,0.04129]
[1754098857023,0.52270632,113750.0,113730.0,0.04129]
[1754098857284,0.32238654,113750.0,113730.0,0.0383]
[1754098857512,0.32238654,113750.0,113740.0,0.00309]
[1754098857732,0.32298654,113750.0,113740.0,0.00309]
[1754098857931,0.32398654,113750.0,113740.0,0.03983]
[1754098858130,0.32598654,113750.0,113740.0,0.03983]
[1754098858337,0.32498654,113750.0,113740.0,0.03983]
[1754098858690,0.32598654,113750.0,113740.0,0.03983]
[1754098858895,0.3565963,113750.0,113740.0,0.03983]
[1754098859531,0.3545963,113750.0,113740.0,0.03983]
[1754098859736,0.41507248,113750.0,113730.0,0.03983]
[1754098859979,0.49927237,113750.0,113730.0,0.03983]
[1754098860545,0.49627237,113750.0,113730.0,0.03983]
[1754098860746,0.49827237,113750.0,113730.0,0.03983]
[1754098860951,0.49927237,113750.0,113730.0,0.03983]
[1754098862350,0.41507248,113750.0,113730.0,0.03983]
[1754098863071,0.24514248,113750.0,113730.0,0.03674]
[1754098863273,0.20582714,113750.0,113740.0,0.00511]
[1754098863489,0.20582714,113750.0,113740.0,0.04185]
[1754098863734,0.19703594,113750.0,113740.0,0.04185]
[1754098863919,0.05983594,113750.0,113740.0,0.08590636]
[1754098864127,0.19503594,113750.0,113740.0,0.04185]
[1754098864328,0.19403594,113750.0,113740.0,0.04185]
[1754098864512,0.19703594,113750.0,113740.0,0.04185]
[1754098866002,0.05983594,113750.0,113740.0,0.04185]
[1754098869104,0.23566011,113750.0,113740.0,0.04185]
[1754098869507,0.05983594,113750.0,113740.0,0.04185]
[1754098870432,0.05983594,113750.0,113740.0,0.08590636]
[1754098870783,0.05983594,113750.0,113740.0,0.04185]
[1754098872055,0.17585509,113730.0,113720.0,0.03997327]
[1754098872264,0.74449869,113730.0,113720.0,0.00014327]
[1754098872497,1.16906858,113730.0,113720.0,0.00014327]
[1754098873556,1.16906858,113730.0,113720.0,0.00214327]
[1754098873785,1.25326847,113730.0,113720.0,0.00214327]
[1754098873967,1.25326847,113730.0,113720.0,0.00014327]
[1754098874128,1.25626847,113730.0,113720.0,0.00014327]
[1754098874528,1.28269847,113730.0,113720.0,0.00014327]
[1754098876717,1.28469847,113730.0,113720.0,0.00014327]
[1754098879652,1.20049858,113730.0,113720.0,0.00014327]
[1754098879862,1.2179476,113730.0,113720.0,0.00014327]
[1754098881024,0.819234,113730.0,113720.0,0.00014327]
[1754098881228,1.2179476,113730.0,113720.0,0.00014327]
[1754098885624,1.2175776,113730.0,113720.0,0.00014327]
[1754098886055,1.25191044,113730.0,113720.0,0.00014327]
[1754098886714,1.25228044,113730.0,113720.0,0.00014327]
[1754098887295,1.25191044,113730.0,113720.0,0.00014327]
[1754098896283,0.85319684,113730.0,113720.0,0.00014327]
[1754098896680,1.25191044,113730.0,113720.0,0.00014327]
[1754098899438,0.85319684,113730.0,113720.0,0.00014327]
[1754098899647,1.2175776,113730.0,113720.0,0.03462327]
[1754098900592,1.2175776,113730.0,113720.0,0.00014327]
[1754098901900,1.19182735,113730.0,113720.0,0.00014327]
[1754098904899,1.19182735,113730.0,113720.0,0.03462327]
[1754098905359,1.27602724,113730.0,113720.0,0.03462327]
[1754098906630,0.87731364,113730.0,113720.0,0.03462327]
[1754098906815,1.59454394,113730.0,113720.0,0.03462327]
[1754098906985,1.56229394,113730.0,113720.0,0.03773327]
[1754098907331,1.56229394,113730.0,113720.0,0.03987327]
[1754098907562,1.47809405,113730.0,113720.0,0.03987327]
[1754098908342,0.37626473,113730.0,113720.0,0.39848842]
[1754098908574,0.29206484,113730.0,113720.0,0.39848842]
[1754098909378,0.29006484,113730.0,113720.0,0.03987327]
[1754098910575,0.28706484,113730.0,113720.0,0.03987327]
[1754098915181,0.1758399,113740.0,113720.0,0.03987327]
[1754098915380,0.39687979,113740.0,113720.0,0.08058154]
[1754098915530,0.73687979,113740.0,113730.0,0.00296]
[1754098915704,0.6526799,113740.0,113730.0,0.03984]
[1754098918056,0.4726024,113740.0,113730.0,0.03984]
[1754098918269,0.6484423,113740.0,113730.0,0.03984]
[1754098921005,0.3084423,113740.0,113730.0,0.03984]
[1754098921476,0.1758399,113740.0,113730.0,0.03984]
[1754098921591,0.3124799,113740.0,113730.0,0.03984]
[1754098923200,0.1758399,113740.0,113730.0,0.03984]
[1754098923367,0.3124399,113740.0,113730.0,0.03984]
[1754098926585,0.3122799,113740.0,113730.0,0.03984]
[1754098927386,0.3122399,113740.0,113730.0,0.03984]
[1754098928429,0.1758399,113740.0,113730.0,0.03984]
[1754098928630,0.13632,113740.0,113730.0,0.03984]
[1754098929060,0.31215963,113740.0,113730.0,0.03984]
[1754098934891,0.13632,113740.0,113730.0,0.03984]
[1754098935280,0.31215963,113740.0,113730.0,0.03984]
[1754098935481,0.13632,113740.0,113730.0,0.03984]
[1754098936895,0.73602014,113750.0,113730.0,0.03984]